{"text_format":"3","workbook":"xlsx","n_sheets":7,"sheets":["Hétfő","Kedd","Szerda","Csütörtök","Péntek","Szombat","Vasárnap"],"not_rendered":{"defined_names":24},"read":"whole","date_system":"1900"}

{"sheet":"Hétfő","index":0,"n_rows":10,"n_cols":13,"rows_kept":10,"merged":[[1,1,2,1],[1,2,1,10],[1,11,1,12],[2,2,2,10],[2,11,2,12]]}
[null,"MŰSZAKBEOSZTÁS"]
[null,"HÉTFŐ","A következő hétre: ",{"$nulls":8},"DÁTUM"]
[null,null,"Részleg neve: ",{"$nulls":8},"RÉSZLEG"]
[null,"Alkalmazott neve","07:00","08:00","09:00","10:00","11:00","12:00","13:00","14:00","15:00","Beteg?","ÖSSZEG"]
[null,"F. Szilvia","menedzser","menedzser","menedzser","menedzser","menedzser","menedzser","menedzser","menedzser","menedzser",null,{"$f":"IFERROR(COUNTIF(Hétfő[[#This Row],[07:00]:[15:00]],\"*\"),\"\")","v":9}]
[null,"M. József",null,"pénztáros","pénztáros","pénztáros","pénztáros",{"$nulls":5},{"$f":"IFERROR(COUNTIF(Hétfő[[#This Row],[07:00]:[15:00]],\"*\"),\"\")","v":4}]
[null,"B. Endre",null,"recepciós","recepciós","recepciós","recepciós ","recepciós","recepciós","recepciós",null,null,{"$f":"IFERROR(COUNTIF(Hétfő[[#This Row],[07:00]:[15:00]],\"*\"),\"\")","v":7}]
[null,"G. Zoltán",null,"recepciós","recepciós","recepciós","recepciós ","recepciós","recepciós","recepciós",null,null,{"$f":"IFERROR(COUNTIF(Hétfő[[#This Row],[07:00]:[15:00]],\"*\"),\"\")","v":7}]
[null,"K. Vince",{"$nulls":10},{"$f":"IFERROR(COUNTIF(Hétfő[[#This Row],[07:00]:[15:00]],\"*\"),\"\")","v":0}]
[null,"M. Juliska",{"$nulls":5},"pénztáros","pénztáros","pénztáros","pénztáros",null,{"$f":"IFERROR(COUNTIF(Hétfő[[#This Row],[07:00]:[15:00]],\"*\"),\"\")","v":4}]

{"sheet":"Kedd","index":1,"n_rows":10,"n_cols":13,"rows_kept":10,"merged":[[1,1,2,1],[1,2,1,10],[1,11,1,12],[2,2,2,10],[2,11,2,12]]}
[null,{"$f":"MŰSZAKBEOSZTÁS_Cím","v":"MŰSZAKBEOSZTÁS"}]
[null,"KEDD","A következő hétre: ",{"$nulls":8},{"$f":"DÁTUM","v":"DÁTUM"}]
[null,null,"Részleg neve: ",{"$nulls":8},{"$f":"RÉSZLEG","v":"RÉSZLEG"}]
[null,"Alkalmazott neve","07:00","08:00","09:00","10:00","11:00","12:00","13:00","14:00","15:00","Beteg?","ÖSSZEG"]
[null,"F. Szilvia","menedzser","menedzser","menedzser","menedzser","menedzser","menedzser","menedzser","menedzser","menedzser",null,{"$f":"IFERROR(COUNTIF(Kedd[[#This Row],[07:00]:[15:00]],\"*\"),\"\")","v":9}]
[null,"M. József",null,"pénztáros","pénztáros","pénztáros","pénztáros",{"$nulls":5},{"$f":"IFERROR(COUNTIF(Kedd[[#This Row],[07:00]:[15:00]],\"*\"),\"\")","v":4}]
[null,"B. Endre",null,"recepciós","recepciós","recepciós","recepciós ","recepciós","recepciós","recepciós",null,null,{"$f":"IFERROR(COUNTIF(Kedd[[#This Row],[07:00]:[15:00]],\"*\"),\"\")","v":7}]
[null,"G. Zoltán",null,"recepciós","recepciós","recepciós","recepciós ","recepciós","recepciós","recepciós",null,null,{"$f":"IFERROR(COUNTIF(Kedd[[#This Row],[07:00]:[15:00]],\"*\"),\"\")","v":7}]
[null,"K. Vince",{"$nulls":9},"Betegség",{"$f":"IFERROR(COUNTIF(Kedd[[#This Row],[07:00]:[15:00]],\"*\"),\"\")","v":0}]
[null,"M. Juliska",{"$nulls":5},"pénztáros","pénztáros","pénztáros","pénztáros",null,{"$f":"IFERROR(COUNTIF(Kedd[[#This Row],[07:00]:[15:00]],\"*\"),\"\")","v":4}]

{"sheet":"Szerda","index":2,"n_rows":10,"n_cols":13,"rows_kept":10,"merged":[[1,1,2,1],[1,2,1,10],[1,11,1,12],[2,2,2,10],[2,11,2,12]]}
[null,{"$f":"MŰSZAKBEOSZTÁS_Cím","v":"MŰSZAKBEOSZTÁS"}]
[null,"SZERDA","A következő hétre: ",{"$nulls":8},{"$f":"DÁTUM","v":"DÁTUM"}]
[null,null,"Részleg neve: ",{"$nulls":8},{"$f":"RÉSZLEG","v":"RÉSZLEG"}]
[null,"Alkalmazott neve","07:00","08:00","09:00","10:00","11:00","12:00","13:00","14:00","15:00","Beteg?","ÖSSZEG"]
[null,"F. Szilvia","menedzser","menedzser","menedzser","menedzser","menedzser","menedzser","menedzser","menedzser","menedzser",null,{"$f":"IFERROR(COUNTIF(Szerda[[#This Row],[07:00]:[15:00]],\"*\"),\"\")","v":9}]
[null,"M. József",null,"pénztáros","pénztáros","pénztáros","pénztáros",{"$nulls":5},{"$f":"IFERROR(COUNTIF(Szerda[[#This Row],[07:00]:[15:00]],\"*\"),\"\")","v":4}]
[null,"B. Endre",null,"recepciós","recepciós","recepciós","recepciós ","recepciós","recepciós","recepciós",null,null,{"$f":"IFERROR(COUNTIF(Szerda[[#This Row],[07:00]:[15:00]],\"*\"),\"\")","v":7}]
[null,"G. Zoltán",null,"recepciós","recepciós","recepciós","recepciós ","recepciós","recepciós","recepciós",null,null,{"$f":"IFERROR(COUNTIF(Szerda[[#This Row],[07:00]:[15:00]],\"*\"),\"\")","v":7}]
[null,"K. Vince",{"$nulls":9},"Betegség",{"$f":"IFERROR(COUNTIF(Szerda[[#This Row],[07:00]:[15:00]],\"*\"),\"\")","v":0}]
[null,"M. Juliska",{"$nulls":5},"pénztáros","pénztáros","pénztáros","pénztáros",null,{"$f":"IFERROR(COUNTIF(Szerda[[#This Row],[07:00]:[15:00]],\"*\"),\"\")","v":4}]

{"sheet":"Csütörtök","index":3,"n_rows":10,"n_cols":13,"rows_kept":10,"merged":[[1,1,2,1],[1,2,1,10],[1,11,1,12],[2,2,2,10],[2,11,2,12]]}
[null,{"$f":"MŰSZAKBEOSZTÁS_Cím","v":"MŰSZAKBEOSZTÁS"}]
[null,"CSÜTÖRTÖK","A következő hétre: ",{"$nulls":8},{"$f":"DÁTUM","v":"DÁTUM"}]
[null,null,"Részleg neve: ",{"$nulls":8},{"$f":"RÉSZLEG","v":"RÉSZLEG"}]
[null,"Alkalmazott neve","07:00","08:00","09:00","10:00","11:00","12:00","13:00","14:00","15:00","Beteg?","ÖSSZEG"]
[null,"F. Szilvia","menedzser","menedzser","menedzser","menedzser","menedzser","menedzser","menedzser","menedzser","menedzser",null,{"$f":"IFERROR(COUNTIF(Csütörtök[[#This Row],[07:00]:[15:00]],\"*\"),\"\")","v":9}]
[null,"M. József",null,"pénztáros","pénztáros","pénztáros","pénztáros",{"$nulls":5},{"$f":"IFERROR(COUNTIF(Csütörtök[[#This Row],[07:00]:[15:00]],\"*\"),\"\")","v":4}]
[null,"B. Endre",null,"recepciós","recepciós","recepciós","recepciós ","recepciós","recepciós","recepciós",null,null,{"$f":"IFERROR(COUNTIF(Csütörtök[[#This Row],[07:00]:[15:00]],\"*\"),\"\")","v":7}]
[null,"G. Zoltán",null,"recepciós","recepciós","recepciós","recepciós ","recepciós","recepciós","recepciós",null,null,{"$f":"IFERROR(COUNTIF(Csütörtök[[#This Row],[07:00]:[15:00]],\"*\"),\"\")","v":7}]
[null,"K. Vince",{"$nulls":9},"Betegség",{"$f":"IFERROR(COUNTIF(Csütörtök[[#This Row],[07:00]:[15:00]],\"*\"),\"\")","v":0}]
[null,"M. Juliska",{"$nulls":5},"pénztáros","pénztáros","pénztáros","pénztáros",null,{"$f":"IFERROR(COUNTIF(Csütörtök[[#This Row],[07:00]:[15:00]],\"*\"),\"\")","v":4}]

{"sheet":"Péntek","index":4,"n_rows":10,"n_cols":13,"rows_kept":10,"merged":[[1,1,2,1],[1,2,1,10],[1,11,1,12],[2,2,2,10],[2,11,2,12]]}
[null,{"$f":"MŰSZAKBEOSZTÁS_Cím","v":"MŰSZAKBEOSZTÁS"}]
[null,"PÉNTEK","A következő hétre: ",{"$nulls":8},{"$f":"DÁTUM","v":"DÁTUM"}]
[null,null,"Részleg neve: ",{"$nulls":8},{"$f":"RÉSZLEG","v":"RÉSZLEG"}]
[null,"Alkalmazott neve","07:00","08:00","09:00","10:00","11:00","12:00","13:00","14:00","15:00","Beteg?","ÖSSZEG"]
[null,"F. Szilvia","menedzser","menedzser","menedzser","menedzser","menedzser","menedzser","menedzser","menedzser","menedzser",null,{"$f":"IFERROR(COUNTIF(Péntek[[#This Row],[07:00]:[15:00]],\"*\"),\"\")","v":9}]
[null,"M. József",null,"pénztáros","pénztáros","pénztáros","pénztáros",{"$nulls":5},{"$f":"IFERROR(COUNTIF(Péntek[[#This Row],[07:00]:[15:00]],\"*\"),\"\")","v":4}]
[null,"B. Endre",null,"recepciós","recepciós","recepciós","recepciós ","recepciós","recepciós","recepciós",null,null,{"$f":"IFERROR(COUNTIF(Péntek[[#This Row],[07:00]:[15:00]],\"*\"),\"\")","v":7}]
[null,"G. Zoltán",null,"recepciós","recepciós","recepciós","recepciós ","recepciós","recepciós","recepciós",null,null,{"$f":"IFERROR(COUNTIF(Péntek[[#This Row],[07:00]:[15:00]],\"*\"),\"\")","v":7}]
[null,"K. Vince",{"$nulls":9},"Betegség",{"$f":"IFERROR(COUNTIF(Péntek[[#This Row],[07:00]:[15:00]],\"*\"),\"\")","v":0}]
[null,"M. Juliska",{"$nulls":5},"pénztáros","pénztáros","pénztáros","pénztáros",null,{"$f":"IFERROR(COUNTIF(Péntek[[#This Row],[07:00]:[15:00]],\"*\"),\"\")","v":4}]

{"sheet":"Szombat","index":5,"n_rows":10,"n_cols":13,"rows_kept":10,"merged":[[1,1,2,1],[1,2,1,10],[1,11,1,12],[2,2,2,10],[2,11,2,12]]}
[null,{"$f":"MŰSZAKBEOSZTÁS_Cím","v":"MŰSZAKBEOSZTÁS"}]
[null,"SZOMBAT","A következő hétre: ",{"$nulls":8},{"$f":"DÁTUM","v":"DÁTUM"}]
[null,null,"Részleg neve: ",{"$nulls":8},{"$f":"RÉSZLEG","v":"RÉSZLEG"}]
[null,"Alkalmazott neve","07:00","08:00","09:00","10:00","11:00","12:00","13:00","14:00","15:00","Beteg?","ÖSSZEG"]
[null,"F. Szilvia","menedzser","menedzser","menedzser","menedzser","menedzser","menedzser","menedzser","menedzser","menedzser",null,{"$f":"IFERROR(COUNTIF(Szombat[[#This Row],[07:00]:[15:00]],\"*\"),\"\")","v":9}]
[null,"M. József",null,"pénztáros","pénztáros","pénztáros","pénztáros",{"$nulls":5},{"$f":"IFERROR(COUNTIF(Szombat[[#This Row],[07:00]:[15:00]],\"*\"),\"\")","v":4}]
[null,"B. Endre",null,"recepciós","recepciós","recepciós","recepciós ","recepciós","recepciós","recepciós",null,null,{"$f":"IFERROR(COUNTIF(Szombat[[#This Row],[07:00]:[15:00]],\"*\"),\"\")","v":7}]
[null,"G. Zoltán",null,"recepciós","recepciós","recepciós","recepciós ","recepciós","recepciós","recepciós",null,null,{"$f":"IFERROR(COUNTIF(Szombat[[#This Row],[07:00]:[15:00]],\"*\"),\"\")","v":7}]
[null,"K. Vince",{"$nulls":9},"Betegség",{"$f":"IFERROR(COUNTIF(Szombat[[#This Row],[07:00]:[15:00]],\"*\"),\"\")","v":0}]
[null,"M. Juliska",{"$nulls":5},"pénztáros","pénztáros","pénztáros","pénztáros",null,{"$f":"IFERROR(COUNTIF(Szombat[[#This Row],[07:00]:[15:00]],\"*\"),\"\")","v":4}]

{"sheet":"Vasárnap","index":6,"n_rows":10,"n_cols":13,"rows_kept":10,"merged":[[1,1,2,1],[1,2,1,10],[1,11,1,12],[2,2,2,10],[2,11,2,12]]}
[null,{"$f":"MŰSZAKBEOSZTÁS_Cím","v":"MŰSZAKBEOSZTÁS"}]
[null,"VASÁRNAP","A következő hétre: ",{"$nulls":8},{"$f":"DÁTUM","v":"DÁTUM"}]
[null,null,"Részleg neve: ",{"$nulls":8},{"$f":"RÉSZLEG","v":"RÉSZLEG"}]
[null,"Alkalmazott neve","07:00","08:00","09:00","10:00","11:00","12:00","13:00","14:00","15:00","Beteg?","ÖSSZEG"]
[null,"F. Szilvia","menedzser","menedzser","menedzser","menedzser","menedzser","menedzser","menedzser","menedzser","menedzser",null,{"$f":"IFERROR(COUNTIF(Vasárnap[[#This Row],[07:00]:[15:00]],\"*\"),\"\")","v":9}]
[null,"M. József",null,"pénztáros","pénztáros","pénztáros","pénztáros",{"$nulls":5},{"$f":"IFERROR(COUNTIF(Vasárnap[[#This Row],[07:00]:[15:00]],\"*\"),\"\")","v":4}]
[null,"B. Endre",null,"recepciós","recepciós","recepciós","recepciós ","recepciós","recepciós","recepciós",null,null,{"$f":"IFERROR(COUNTIF(Vasárnap[[#This Row],[07:00]:[15:00]],\"*\"),\"\")","v":7}]
[null,"G. Zoltán",null,"recepciós","recepciós","recepciós","recepciós ","recepciós","recepciós","recepciós",null,null,{"$f":"IFERROR(COUNTIF(Vasárnap[[#This Row],[07:00]:[15:00]],\"*\"),\"\")","v":7}]
[null,"K. Vince",{"$nulls":9},"Betegség",{"$f":"IFERROR(COUNTIF(Vasárnap[[#This Row],[07:00]:[15:00]],\"*\"),\"\")","v":0}]
[null,"M. Juliska",{"$nulls":5},"pénztáros","pénztáros","pénztáros","pénztáros",null,{"$f":"IFERROR(COUNTIF(Vasárnap[[#This Row],[07:00]:[15:00]],\"*\"),\"\")","v":4}]